fUSD/lending_fUSD_20260517
["ID","MTS","AMOUNT","RATE_DAILY","PERIOD"]
[422499153,1778999467000,-350.0,0.00038601,2]
[422499152,1778999467000,-12423.25976802,0.000386,120]
[422499155,1778999467000,-151.0,0.00038667,120]
[422499157,1778999467000,-2313.0,0.00038693,11]
[422499159,1778999467000,-4001.4436199,0.00038712,120]
[422499156,1778999467000,-5634.40711717,0.0003869,2]
[422499158,1778999467000,-150.36,0.00038709,120]
[422499164,1778999467000,-1585.0,0.00038767,11]
[422499160,1778999467000,-164.0,0.00038731,11]
[422499154,1778999467000,-150.36,0.00038609,120]
[422499163,1778999467000,-150.0,0.0003875,120]
[422499165,1778999467000,-350.0,0.00038767,5]
[422499161,1778999467000,-163.0,0.00038734,11]
[422499166,1778999467000,-312.615,0.000388,43]
[422499168,1778999467000,-1407.0,0.000388,30]
[422499174,1778999467000,-877.4772,0.00038861,30]
[422499169,1778999467000,-224.81059483,0.00038804,120]
[422499167,1778999467000,-240.169599,0.000388,43]
[422499173,1778999467000,-624.60134489,0.00038845,7]
[422499177,1778999467000,-500.0,0.00038887,7]
[422499170,1778999467000,-150.36,0.00038809,120]
[422499176,1778999467000,-603.0,0.00038884,14]
[422499172,1778999467000,-12692.223441,0.00038834,2]
[422499205,1778999467000,-172.0,0.00039,30]
[422499210,1778999467000,-350.0,0.00039057,2]
[422499216,1778999467000,-400.0,0.00039183,2]
[422499242,1778999467000,-2557.44843548,0.00039416,11]
[422499231,1778999467000,-334.5992,0.000393,30]
[422499232,1778999467000,-263.0,0.00039305,5]
[422499237,1778999467000,-2557.44843548,0.00039416,11]
[422499235,1778999467000,-2313.0,0.00039392,11]
[422499236,1778999467000,-2557.44843549,0.00039416,11]
[422499238,1778999467000,-2557.44843548,0.00039416,11]
[422499239,1778999467000,-2557.44843548,0.00039416,11]
[422499245,1778999467000,-208.73,0.00039423,7]
[422499247,1778999467000,-751.92,0.00039481,60]
[422499246,1778999467000,-214.36,0.00039423,120]
[422499249,1778999467000,-6784.29,0.00039536,2]
[422499248,1778999467000,-434278.28631662,0.0003949,2]
[422499250,1778999467000,-644.79446246,0.00039545,2]
[422499252,1778999467000,-4040.4716116,0.00039573,14]
[422499251,1778999467000,-301.1433787,0.00039548,2]
[422499253,1778999467000,-357.87,0.00039576,30]
[422499254,1778999467000,-373.27,0.00039576,30]
[422499215,1778999467000,-1000.0,0.00039183,2]
[422499255,1778999467000,-150.0,0.00039579,2]
[422499261,1778999467000,-2557.44843548,0.00039616,11]
[422499258,1778999467000,-150.0,0.00039584,120]
[422499256,1778999467000,-303.17,0.00039583,30]
[422499259,1778999467000,-150.0,0.00039584,120]
[422499260,1778999467000,-169.25,0.00039605,3]
[422499234,1778999467000,-2313.0,0.00039371,11]
[422499241,1778999467000,-2557.44843548,0.00039416,11]
[422499257,1778999467000,-202.1,0.00039583,30]
[422499243,1778999467000,-603.0,0.00039418,15]
[422499233,1778999467000,-2313.0,0.00039371,11]
[422499207,1778999467000,-290.39862941,0.00039,2]
[422499204,1778999467000,-31316.95757879,0.00039,2]
[422499208,1778999467000,-178.91534753,0.00039009,2]
[422499211,1778999467000,-3338.3144292,0.00039067,2]
[422499209,1778999467000,-2144.0,0.00039013,11]
[422499214,1778999467000,-152.31,0.0003914,116]
[422499213,1778999467000,-151.0,0.000391,120]
[422499212,1778999467000,-2339.1459,0.00039096,30]
[422499217,1778999467000,-2313.0,0.0003919,11]
[422499218,1778999467000,-150.0,0.0003925,120]
[422499219,1778999467000,-1266.1,0.00039269,60]
[422499206,1778999467000,-150.0,0.00039,120]
[422499223,1778999467000,-150.0,0.000393,2]
[422499220,1778999467000,-2313.0,0.0003927,11]
[422499240,1778999467000,-2557.44843548,0.00039416,11]
[422499244,1778999467000,-219.99,0.00039423,7]
[422499227,1778999467000,-150.0,0.000393,2]
[422499225,1778999467000,-150.0,0.000393,2]
[422499226,1778999467000,-208.34520141,0.000393,2]
[422499222,1778999467000,-150.0,0.000393,2]
[422499229,1778999467000,-150.0,0.000393,2]
[422499224,1778999467000,-150.0,0.000393,2]
[422499230,1778999467000,-153.0,0.000393,120]
[422499221,1778999467000,-151.28656754,0.000393,2]
[422499228,1778999467000,-150.0,0.000393,2]
[422499281,1778999468000,-500.61556267,0.000398,7]
[422499302,1778999468000,-211.646523,0.000399,120]
[422499284,1778999468000,-903.79,0.000398,120]
[422499278,1778999468000,-164.0,0.00039786,11]
[422499283,1778999468000,-14245.83078647,0.000398,6]
[422499282,1778999468000,-167.385001,0.000398,48]
[422499291,1778999468000,-2835.74767667,0.0003988,120]
[422499290,1778999468000,-96182.00560693,0.0003987,14]
[422499292,1778999468000,-150.0,0.00039887,2]
[422499297,1778999468000,-2294.9737345,0.00039887,2]
[422499293,1778999468000,-3316.11994332,0.00039887,2]
[422499295,1778999468000,-17342.44378636,0.00039887,2]
[422499296,1778999468000,-150.0,0.00039887,2]
[422499294,1778999468000,-150.0,0.00039887,2]
[422499299,1778999468000,-1262.8161,0.00039897,2]
[422499298,1778999468000,-167.10526086,0.00039887,30]
[422499300,1778999468000,-1164.25,0.00039897,2]
[422499280,1778999468000,-153.0,0.000398,120]
[422499301,1778999468000,-1500.58453827,0.000399,20]
[422499286,1778999468000,-624.60134489,0.00039845,7]
[422499270,1778999468000,-350.0,0.00039726,5]
[422499288,1778999468000,-359.71931752,0.00039869,14]
[422499263,1778999468000,-219.99,0.00039616,120]
[422499262,1778999468000,-214.36,0.00039616,120]
[422499265,1778999468000,-156.88,0.00039617,120]
[422499264,1778999468000,-271.25,0.00039616,120]
[422499267,1778999468000,-3181.0,0.0003969,120]
[422499277,1778999468000,-350.0,0.00039773,2]
[422499266,1778999468000,-1586.0,0.00039656,11]
[422499269,1778999468000,-2313.0,0.00039694,11]
[422499285,1778999468000,-805.0,0.00039811,11]
[422499268,1778999468000,-2216.0,0.0003969,120]
[422499276,1778999468000,-152.31,0.0003975,120]
[422499274,1778999468000,-350.0,0.00039741,4]
[422499275,1778999468000,-152.0,0.00039747,10]
[422499272,1778999468000,-748.37,0.00039726,60]
[422499273,1778999468000,-699.16,0.00039726,60]
[422499287,1778999468000,-156.15033622,0.00039845,7]
[422499279,1778999468000,-169.23,0.00039789,3]
[422499289,1778999468000,-400.0,0.0003987,2]
[422499271,1778999468000,-300.0,0.00039726,120]
[422499309,1778999468000,-3533.62237944,0.000399,2]
[422499319,1778999468000,-900.0,0.00039924,15]
[422499303,1778999468000,-10143.0742612,0.000399,120]
[422499331,1778999468000,-11670.70595169,0.0003998,30]
[422499333,1778999468000,-999.99999901,0.00039999,31]
[422499330,1778999468000,-75430.74838992,0.0003997,2]
[422499335,1778999468000,-1013.18177362,0.0004,7]
[422499332,1778999468000,-3163.47353179,0.00039999,2]
[422499336,1778999468000,-1058.96655933,0.0004,20]
[422499337,1778999468000,-24144.10506724,0.0004,2]
[422499338,1778999468000,-396.50050032,0.0004,2]
[422499329,1778999468000,-603.0,0.00039952,16]
[422499340,1778999468000,-4177.65755991,0.0004,2]
[422499339,1778999468000,-1586.33612459,0.0004,2]
[422499341,1778999468000,-26385.77056898,0.0004,10]
[422499342,1778999468000,150.0,0.0002058,2]
[422499343,1778999468000,-500.0,0.00024773,2]
[422499344,1778999468000,-2000.0,0.00025878,2]
[422499346,1778999468000,-360.90096807,0.00025878,2]
[422499345,1778999468000,-1628.2425,0.00025878,2]
[422499328,1778999468000,-500.0,0.00039945,2]
[422499317,1778999468000,-900.0,0.00039924,15]
[422499334,1778999468000,-2101.32666991,0.0004,2]
[422499321,1778999468000,-800.0,0.00039929,15]
[422499311,1778999468000,-153.16793018,0.00039912,30]
[422499305,1778999468000,-396.3,0.000399,120]
[422499304,1778999468000,-200.0,0.000399,16]
[422499310,1778999468000,-2483.14038709,0.000399,2]
[422499307,1778999468000,-400.0,0.000399,14]
[422499322,1778999468000,-800.0,0.00039929,15]
[422499308,1778999468000,-3533.62237944,0.000399,2]
[422499312,1778999468000,-900.0,0.00039924,15]
[422499315,1778999468000,-900.0,0.00039924,15]
[422499313,1778999468000,-900.0,0.00039924,15]
[422499325,1778999468000,-800.0,0.00039929,15]
[422499314,1778999468000,-900.0,0.00039924,15]
[422499316,1778999468000,-900.0,0.00039924,15]
[422499320,1778999468000,-800.0,0.00039929,15]
[422499318,1778999468000,-900.0,0.00039924,15]
[422499306,1778999468000,-2623.54300841,0.000399,2]
[422499324,1778999468000,-800.0,0.00039929,15]
[422499323,1778999468000,-800.0,0.00039929,15]
[422499326,1778999468000,-800.0,0.00039929,15]
[422499327,1778999468000,-800.0,0.00039929,15]
[422499347,1778999469000,184.95027952,0.0002058,2]
[422499348,1778999606000,250.0,0.00014,2]
[422499349,1778999607000,300.0,0.00016,2]
[422499350,1778999608000,350.0,0.00018,2]
[422499351,1778999609000,400.0,0.0002,2]
[422499352,1778999777000,167.0,0.0002,2]
[422499353,1778999779000,167.0,0.00021,2]
[422499355,1778999838000,151.0,0.0002,2]
[422499356,1778999839000,151.0,0.00021,2]
[422499357,1778999860000,155.17,0.00012294,2]
[422499358,1778999869000,508.0,0.0002,2]
[422499359,1778999871000,508.0,0.00021,2]
[422499360,1778999916000,570.0,0.0002,2]
[422499361,1778999918000,570.0,0.00021,2]
[422499362,1778999986000,2000.0,0.00028069,120]
[422499363,1779000068000,192.0,0.0002,2]
[422499364,1779000069000,192.0,0.00021,2]
[422499367,1779000132000,151.2,0.0001841,2]
[422499366,1779000132000,151.2,0.00020381,2]
[422499365,1779000132000,151.2,0.00016438,2]
[422499368,1779000232000,159.0,0.000301,120]
[422499369,1779000254000,246.0,0.0002,2]
[422499370,1779000255000,246.0,0.00021,2]
[422499371,1779000287000,159.0,0.00021,5]
[422499373,1779000481000,166.66,0.00020724,2]
[422499391,1779000632000,-151.0,0.00022,2]
[422499392,1779000632000,-508.0,0.00022,2]
[422499394,1779000632000,-192.0,0.00022,2]
[422499396,1779000632000,-246.0,0.00022,2]
[422499397,1779000632000,-1793.64,0.00022,2]
[422499398,1779000632000,-178.62,0.00022026,2]
[422499399,1779000632000,-150.0,0.00022079,2]
[422499406,1779000632000,-153.69,0.00022404,2]
[422499409,1779000632000,-5000.0,0.00022455,2]
[422499408,1779000632000,-160.64943163,0.00022407,2]
[422499410,1779000632000,-2000.0,0.00022455,2]
[422499400,1779000632000,-150.0,0.00022292,2]
[422499385,1779000632000,-9999.99,0.00021879,2]
[422499402,1779000632000,-151.0,0.00022353,2]
[422499395,1779000632000,-348.75728933,0.00022,2]
[422499390,1779000632000,-167.0,0.00022,2]
[422499383,1779000632000,-193.45,0.00021875,2]
[422499387,1779000632000,-3380.9799963,0.00021879,2]
[422499404,1779000632000,-500.0,0.00022399,2]
[422499374,1779000632000,-2171.21,0.00021647,2]
[422499379,1779000632000,-300.0,0.00021841,2]
[422499375,1779000632000,-200.0,0.0002176,2]
[422499376,1779000632000,-1030.27,0.00021783,2]
[422499377,1779000632000,-1200.0,0.00021817,2]
[422499389,1779000632000,-450.0,0.00022,2]
[422499381,1779000632000,-214.7464576,0.0002185,2]
[422499380,1779000632000,-1251.35,0.00021842,2]
[422499382,1779000632000,-150.0,0.00021862,2]
[422499386,1779000632000,-6619.0100037,0.00021879,2]
[422499388,1779000632000,-283.79,0.00021918,2]
[422499393,1779000632000,-570.0,0.00022,2]
[422499384,1779000632000,-1788.03,0.00021879,2]
[422499378,1779000632000,-6464.64,0.00021818,2]
[422499411,1779000632000,-1756.73,0.00022466,2]
[422499451,1779000632000,-11409.4561,0.000231,2]
[422499412,1779000632000,-1575.83,0.00022466,2]
[422499449,1779000632000,-500.0,0.00023023,2]
[422499453,1779000632000,-5000.0,0.000231,2]
[422499454,1779000632000,-434.57067326,0.000231,2]
[422499455,1779000632000,-2493.0880406,0.000231,2]
[422499457,1779000632000,-2500.0,0.000231,2]
[422499456,1779000632000,-9686.68978927,0.000231,2]
[422499447,1779000632000,-246.0,0.00023,2]
[422499458,1779000632000,-1377.06946857,0.000231,2]
[422499464,1779000632000,-151.0,0.00023197,7]
[422499459,1779000632000,-690.84,0.00023141,2]
[422499460,1779000632000,-3075.54,0.0002316,2]
[422499414,1779000632000,-453.1,0.00022628,2]
[422499465,1779000632000,-246.0606595,0.00023199,2]
[422499462,1779000632000,-453.1,0.00023193,2]
[422499463,1779000632000,-151.0,0.00023197,7]
[422499445,1779000632000,-192.0,0.00023,2]
[422499461,1779000632000,-242.59630084,0.0002319,2]
[422499443,1779000632000,-570.0,0.00023,2]
[422499415,1779000632000,-500.0,0.000227,8]
[422499417,1779000632000,-255.0,0.00022799,2]
[422499425,1779000632000,-348.75728933,0.00022904,2]
[422499423,1779000632000,-1000.0,0.000229,8]
[422499413,1779000632000,-200.0,0.000226,8]
[422499419,1779000632000,-158.35783033,0.000228,2]
[422499421,1779000632000,-700.0,0.000228,8]
[422499416,1779000632000,-170.96,0.00022727,2]
[422499430,1779000632000,-1000.0,0.00022925,2]
[422499432,1779000632000,-5068.32039375,0.00022933,2]
[422499434,1779000632000,-167.0,0.00023,2]
[422499436,1779000632000,-151.0,0.00023,2]
[422499439,1779000632000,-1509.13236649,0.00023,30]
[422499441,1779000632000,-508.0,0.00023,2]
[422499427,1779000632000,-166.66,0.00022905,30]
[422499481,1779000633000,-164.41440023,0.00023199,2]
[422499489,1779000633000,-500.0,0.00023199,2]
[422499484,1779000633000,-500.0,0.00023199,2]
[422499487,1779000633000,-500.0,0.00023199,2]
[422499485,1779000633000,-500.0,0.00023199,2]
[422499482,1779000633000,-500.0,0.00023199,2]
[422499495,1779000633000,-500.0,0.00023199,2]
[422499486,1779000633000,-500.0,0.00023199,2]
[422499501,1779000633000,-500.0,0.00023199,2]
[422499500,1779000633000,-500.0,0.00023199,2]
[422499494,1779000633000,-500.0,0.00023199,2]
[422499478,1779000633000,-500.0,0.00023199,2]
[422499483,1779000633000,-500.0,0.00023199,2]
[422499479,1779000633000,-500.0,0.00023199,2]
[422499469,1779000633000,-500.0,0.00023199,2]
[422499480,1779000633000,-500.0,0.00023199,2]
[422499477,1779000633000,-500.0,0.00023199,2]
[422499476,1779000633000,-513.43920586,0.00023199,2]
[422499475,1779000633000,-500.0,0.00023199,2]
[422499473,1779000633000,-500.0,0.00023199,2]
[422499474,1779000633000,-500.0,0.00023199,2]
[422499493,1779000633000,-500.0,0.00023199,2]
[422499471,1779000633000,-500.0,0.00023199,2]
[422499468,1779000633000,-500.0,0.00023199,2]
[422499472,1779000633000,-593.21552927,0.00023199,2]
[422499467,1779000633000,-631.55936134,0.00023199,2]
[422499470,1779000633000,-500.0,0.00023199,2]
[422499466,1779000633000,-500.0,0.00023199,2]
[422499488,1779000633000,-500.0,0.00023199,2]
[422499492,1779000633000,-500.0,0.00023199,2]
[422499518,1779000633000,-500.0,0.00023199,2]
[422499491,1779000633000,-500.0,0.00023199,2]
[422499496,1779000633000,-500.0,0.00023199,2]
[422499526,1779000633000,-73712.18344294,0.000232,2]
[422499520,1779000633000,-500.0,0.00023199,2]
[422499523,1779000633000,-500.0,0.00023199,2]
[422499519,1779000633000,-500.0,0.00023199,2]
[422499525,1779000633000,-506.10311636,0.00023199,2]
[422499521,1779000633000,-435.9322571,0.00023199,2]
[422499517,1779000633000,-500.0,0.00023199,2]
[422499522,1779000633000,-500.0,0.00023199,2]
[422499524,1779000633000,-500.0,0.00023199,2]
[422499513,1779000633000,-170.0,0.00023199,2]
[422499503,1779000633000,-506.38825692,0.00023199,2]
[422499509,1779000633000,-525.39,0.00023199,2]
[422499514,1779000633000,-172.34130374,0.00023199,2]
[422499516,1779000633000,-527.43788635,0.00023199,2]
[422499504,1779000633000,-500.0,0.00023199,2]
[422499499,1779000633000,-645.2141162,0.00023199,2]
[422499490,1779000633000,-500.0,0.00023199,2]
[422499498,1779000633000,-500.0,0.00023199,2]
[422499502,1779000633000,-500.0,0.00023199,2]
[422499511,1779000633000,-504.31823743,0.00023199,2]
[422499505,1779000633000,-500.0,0.00023199,2]
[422499497,1779000633000,-500.0,0.00023199,2]
[422499508,1779000633000,-500.0,0.00023199,2]
[422499515,1779000633000,-500.0,0.00023199,2]
[422499510,1779000633000,-3000.0,0.00023199,2]
[422499507,1779000633000,-512.70710012,0.00023199,2]
[422499512,1779000633000,-170.0,0.00023199,2]
[422499506,1779000633000,-500.0,0.00023199,2]
[422499547,1779000638000,-150.0,0.0002376,2]
[422499536,1779000638000,-500.0,0.0002352,2]
[422499539,1779000638000,-500.0,0.0002352,2]
[422499543,1779000638000,-420.0,0.00023738,2]
[422499541,1779000638000,-52352.85,0.00023594,2]
[422499529,1779000638000,-358.44,0.000232,7]
[422499532,1779000638000,-836.5,0.00023352,2]
[422499533,1779000638000,-500.0,0.00023438,2]
[422499534,1779000638000,-508.68888162,0.00023519,2]
[422499528,1779000638000,-2426287.81655706,0.000232,2]
[422499527,1779000638000,-283.79,0.00023092,2]
[422499545,1779000638000,-453.1,0.00023759,2]
[422499530,1779000638000,-33183.3746,0.000233,2]
[422499555,1779000638000,-500.0,0.0002393,2]
[422499531,1779000638000,-2000.0,0.000233,2]
[422499553,1779000638000,-500.0,0.0002393,2]
[422499559,1779000638000,-500.0,0.0002393,2]
[422499565,1779000638000,-636.76912385,0.0002393,2]
[422499571,1779000638000,-321.54,0.00023976,2]
[422499569,1779000638000,-271.25,0.00023976,2]
[422499577,1779000638000,-152.91102821,0.00024,2]
[422499579,1779000638000,-508.0,0.00024,2]
[422499575,1779000638000,-167.0,0.00024,2]
[422499567,1779000638000,-217.17,0.00023976,2]
[422499573,1779000638000,-500.0,0.00024,2]
[422499551,1779000638000,-1680.0,0.00023824,2]
[422499549,1779000638000,-348.75728933,0.00023808,2]
[422499561,1779000638000,-377.02817999,0.0002393,2]
[422499563,1779000638000,-500.0,0.0002393,2]
[422499557,1779000638000,-500.0,0.0002393,2]
[422499645,1779000639000,-201.0,0.00025,2]
[422499659,1779000639000,-2320.54,0.00025786,2]
[422499661,1779000639000,-550.0,0.00026,2]
[422499658,1779000639000,-2825.58,0.00025786,2]
[422499660,1779000639000,-587.0,0.00025799,2]
[422499651,1779000639000,-358.44,0.000253,7]
[422499653,1779000639000,-348.75728933,0.00025616,2]
[422499650,1779000639000,-2000.0,0.00025262,2]
[422499652,1779000639000,-283.79,0.0002544,2]
[422499647,1779000639000,-246.0,0.00025,2]
[422499654,1779000639000,-152.0,0.00025639,7]
[422499664,1779000639000,-151.0,0.00026296,2]
[422499655,1779000639000,-1377.06946853,0.00025657,2]
[422499666,1779000639000,-2493.08804053,0.000263,2]
[422499657,1779000639000,-1010.88,0.00025786,2]
[422499663,1779000639000,-434.5706732,0.00026233,2]
[422499662,1779000639000,-2351.0,0.00026015,2]
[422499677,1779000639000,-300.0,0.00027397,2]
[422499671,1779000639000,-501.41180139,0.00026659,2]
[422499676,1779000639000,-1500.0,0.00027397,2]
[422499665,1779000639000,-9686.68978926,0.000263,2]
[422499668,1779000639000,-170.96,0.00026478,2]
[422499667,1779000639000,-200.0,0.00026438,2]
[422499670,1779000639000,-283.79,0.00026614,2]
[422499669,1779000639000,-348.75728933,0.00026521,2]
[422499641,1779000639000,-526.70135963,0.00025,2]
[422499656,1779000639000,-356.78,0.00025786,2]
[422499635,1779000639000,-453.1,0.00024891,2]
[422499593,1779000639000,-283.79,0.00024266,2]
[422499643,1779000639000,-585.05895688,0.00025,2]
[422499673,1779000639000,-215.0785988,0.00027351,2]
[422499581,1779000639000,-570.0,0.00024,2]
[422499585,1779000639000,-246.0,0.00024,2]
[422499583,1779000639000,-192.0,0.00024,2]
[422499586,1779000639000,-155.17,0.00024106,2]
[422499587,1779000639000,-356.78,0.00024174,2]
[422499590,1779000639000,-2825.58,0.00024174,2]
[422499595,1779000639000,-151.0,0.00024324,2]
[422499588,1779000639000,-1010.88,0.00024174,2]
[422499597,1779000639000,-453.1,0.00024325,2]
[422499592,1779000639000,-2320.54,0.00024174,2]
[422499599,1779000639000,-690.84,0.00024511,2]
[422499604,1779000639000,-2493.08804053,0.000247,2]
[422499601,1779000639000,-1000.0,0.00024658,2]
[422499602,1779000639000,-9686.68978926,0.000247,2]
[422499606,1779000639000,-348.75728933,0.00024712,2]
[422499608,1779000639000,-507.49986349,0.00024746,2]
[422499610,1779000639000,-1511.87138177,0.00024746,2]
[422499612,1779000639000,-175.68466801,0.00024746,2]
[422499622,1779000639000,-156.51158481,0.00024746,4]
[422499624,1779000639000,-2906.16436472,0.00024781,2]
[422499627,1779000639000,-242.59630084,0.00024836,2]
[422499629,1779000639000,-151.0,0.00024843,7]
[422499632,1779000639000,-1500000.0,0.00024846,2]
[422499614,1779000639000,-5296.35593303,0.00024746,2]
[422499633,1779000639000,-328.34119691,0.00024846,2]
[422499638,1779000639000,-1300.0,0.000249,9]
[422499639,1779000639000,-174.62894597,0.00025,2]
[422499672,1779000639000,-174.66,0.00027034,2]
[422499696,1779000639000,-2493.08804053,0.00027901,2]
[422499674,1779000639000,-160.0,0.00027351,2]
[422499710,1779000639000,-434.1,0.0002863,2]
[422499711,1779000639000,-336.97,0.0002863,2]
[422499706,1779000639000,-1000.0,0.00028483,21]
[422499708,1779000639000,-774.72168467,0.000285,2]
[422499713,1779000639000,-1927.41,0.0002863,2]
[422499709,1779000639000,-1937.99,0.0002863,2]
[422499712,1779000639000,-1080.1,0.0002863,2]
[422499716,1779000639000,-1081.24,0.0002863,2]
[422499719,1779000639000,-434.1,0.00028661,7]
[422499720,1779000639000,-336.97,0.00028661,7]
[422499717,1779000639000,-215.0785988,0.00028661,7]
[422499728,1779000639000,-336.97,0.00028693,30]
[422499724,1779000639000,-337.24,0.00028661,7]
[422499718,1779000639000,-1937.99,0.00028661,7]
[422499722,1779000639000,-1927.41,0.00028661,7]
[422499726,1779000639000,-1937.99,0.00028693,30]
[422499723,1779000639000,-433.67,0.00028661,7]
[422499721,1779000639000,-1080.1,0.00028661,7]
[422499725,1779000639000,-1081.24,0.00028661,7]
[422499727,1779000639000,-434.1,0.00028693,30]
[422499731,1779000639000,-433.67,0.00028693,30]
[422499734,1779000639000,-6139.1442029,0.000287,2]
[422499729,1779000639000,-1080.1,0.00028693,30]
[422499735,1779000639000,-1937.99,0.00028725,2]
[422499732,1779000639000,-337.24,0.00028693,30]
[422499733,1779000639000,-1081.24,0.00028693,30]
[422499736,1779000639000,-434.1,0.00028725,2]
[422499714,1779000639000,-433.67,0.0002863,2]
[422499715,1779000639000,-337.24,0.0002863,2]
[422499675,1779000639000,-208.48490792,0.00027351,2]
[422499705,1779000639000,-221.14,0.00028413,2]
[422499679,1779000639000,-12490.28,0.00027397,10]
[422499678,1779000639000,-526.72,0.00027397,2]
[422499688,1779000639000,-774.72168467,0.000276,2]
[422499680,1779000639000,-10408.57,0.00027397,10]
[422499681,1779000639000,-6139.1442029,0.000274,2]
[422499689,1779000639000,-283.79,0.00027789,2]
[422499684,1779000639000,-2038.08,0.000274,14]
[422499707,1779000639000,-6139.1442029,0.000285,2]
[422499690,1779000639000,-500.0,0.000278,7]
[422499686,1779000639000,-348.75728933,0.00027425,2]
[422499683,1779000639000,-158.42,0.000274,7]
[422499682,1779000639000,-774.72168467,0.000274,2]
[422499687,1779000639000,-6139.1442029,0.000276,2]
[422499685,1779000639000,-312.52,0.000274,7]
[422499702,1779000639000,-151.0,0.00028267,2]
[422499692,1779000639000,-2831.50068758,0.000279,2]
[422499701,1779000639000,-1377.06946853,0.00028213,2]
[422499700,1779000639000,-774.72168467,0.000282,2]
[422499697,1779000639000,-600.0,0.00028,2]
[422499699,1779000639000,-6139.1442029,0.000282,2]
[422499730,1779000639000,-1927.41,0.00028693,30]
[422499704,1779000639000,-743.0,0.00028408,2]
[422499695,1779000639000,-358.44,0.000279,7]
[422499691,1779000639000,-9686.68978926,0.000279,2]
[422499694,1779000639000,-774.72168467,0.000279,2]
[422499693,1779000639000,-3307.64351532,0.000279,2]
[422499703,1779000639000,-348.75728933,0.00028329,2]
[422499698,1779000639000,-171.0,0.0002804,2]
[422499783,1779000640000,-364.0,0.00028915,2]
[422499779,1779000640000,-1080.1,0.00028883,30]
[422499780,1779000640000,-1927.41,0.00028883,30]
[422499778,1779000640000,-336.97,0.00028883,30]
[422499777,1779000640000,-434.1,0.00028883,30]
[422499771,1779000640000,-336.97,0.00028852,7]
[422499776,1779000640000,-1937.99,0.00028883,30]
[422499774,1779000640000,-433.67,0.00028852,7]
[422499773,1779000640000,-1927.41,0.00028852,7]
[422499775,1779000640000,-337.24,0.00028852,7]
[422499781,1779000640000,-433.67,0.00028883,30]
[422499787,1779000640000,-1080.1,0.00028915,2]
[422499797,1779000640000,-337.24,0.00028947,7]
[422499786,1779000640000,-336.97,0.00028915,2]
[422499794,1779000640000,-1080.1,0.00028947,7]
[422499784,1779000640000,-1937.99,0.00028915,2]
[422499788,1779000640000,-1927.41,0.00028915,2]
[422499790,1779000640000,-337.24,0.00028915,2]
[422499791,1779000640000,-1937.99,0.00028947,7]
[422499789,1779000640000,-433.67,0.00028915,2]
[422499793,1779000640000,-336.97,0.00028947,7]
[422499792,1779000640000,-434.1,0.00028947,7]
[422499796,1779000640000,-433.67,0.00028947,7]
[422499795,1779000640000,-1927.41,0.00028947,7]
[422499806,1779000640000,-6139.1442029,0.00029,2]
[422499782,1779000640000,-337.24,0.00028883,30]
[422499785,1779000640000,-434.1,0.00028915,2]
[422499772,1779000640000,-1080.1,0.00028852,7]
[422499746,1779000640000,-1080.1,0.00028756,7]